bitfinex/quotes_ETHUSD_20250519
["timestamp","ask_amount","ask_price","bid_price","bid_amount"]
[1747636591785,4.21694827,2371.4,2370.9,0.2057]
[1747636591983,4.21713856,2371.3,2370.9,9.7657]
[1747636592311,7.97,2371.9,2370.9,9.7657]
[1747636592604,7.97,2371.9,2371.0,0.754]
[1747636592919,4.21744354,2371.2,2371.0,0.754]
[1747636593097,4.21745181,2371.1,2371.0,0.754]
[1747636593998,4.21762969,2371.0,2370.9,0.2057]
[1747636595526,4.21746124,2371.1,2370.9,0.2057]
[1747636595674,4.21762969,2371.0,2370.9,0.2057]
[1747636596408,4.21751843,2371.1,2370.9,0.2057]
[1747636596587,4.21751843,2371.1,2371.0,0.7783]
[1747636598816,4.21762969,2371.0,2370.9,9.7657]
[1747636599628,4.2175483,2371.1,2370.9,10.10656313]
[1747636599931,0.8027,2372.0,2371.1,0.8295]
[1747636600076,4.21531846,2372.3,2371.3,0.8295]
[1747636600276,4.2155847,2372.2,2371.5,5.04610075]
[1747636600614,4.21532765,2372.3,2371.7,0.8099]
[1747636600777,0.32059416,2372.6,2371.8,9.387]
[1747636600980,4.21515342,2372.4,2371.9,10.3699]
[1747636601276,4.21490919,2372.6,2372.2,0.8099]
[1747636601515,4.21509701,2372.5,2372.2,0.8099]
[1747636601897,4.21531846,2372.3,2372.2,0.8099]
[1747636603021,4.21522185,2372.4,2372.2,0.8099]
[1747636603318,9.385,2373.0,2372.2,0.8099]
[1747636603518,4.2144302,2372.8,2372.2,0.8099]
[1747636603718,4.21531846,2372.3,2372.2,0.8099]
[1747636603887,4.21531846,2372.3,2372.2,10.1929]
[1747636604084,4.21531846,2372.3,2372.2,0.8099]
[1747636604289,4.21531846,2372.3,2372.2,10.1929]
[1747636604790,4.21531846,2372.3,2371.9,9.382]
[1747636604985,4.2158516,2372.0,2371.9,9.382]
[1747636605187,4.21602934,2371.9,2371.8,9.382]
[1747636606330,4.21625461,2371.8,2371.6,0.8109]
[1747636606526,4.21638487,2371.7,2371.6,0.8109]
[1747636606723,0.7669,2372.6,2371.6,0.8109]
[1747636606724,4.9817934,2372.6,2371.6,0.8109]
[1747636607028,4.21596813,2372.0,2371.6,10.1729]
[1747636607926,17.349,2372.8,2371.6,10.1729]
[1747636608126,4.21576624,2372.1,2371.6,14.38939339]
[1747636608544,4.21499097,2372.5,2371.6,0.8109]
[1747636608839,4.21636384,2371.8,2371.6,10.1519]
[1747636608987,4.21638487,2371.7,2371.6,0.8109]
[1747636609231,4.21628465,2371.8,2371.6,0.8109]
[1747636609930,7.38522739,2372.7,2371.6,0.8109]
[1747636610182,4.21538885,2372.3,2371.6,0.8109]
[1747636610327,4.21638487,2371.7,2371.6,0.8109]
[1747636610528,4.21638487,2371.7,2371.6,10.1919]
[1747636611157,4.21629365,2371.8,2371.6,10.1919]
[1747636611379,12.21444934,2372.8,2371.6,10.1919]
[1747636611380,4.2160327,2371.9,2371.6,10.1919]
[1747636611967,4.21506278,2372.5,2371.6,10.1919]
[1747636612268,4.21535584,2372.3,2371.7,0.04215586]
[1747636612439,4.21537531,2372.3,2371.6,10.1919]
[1747636612636,4.21537531,2372.3,2371.8,4.21611334]
[1747636612951,4.21537531,2372.3,2372.0,0.815]
[1747636613263,4.21537531,2372.3,2372.1,9.381]
[1747636613467,4.21549616,2372.2,2372.1,9.381]
[1747636614968,4.21538252,2372.3,2372.1,9.381]
[1747636615270,4.21549616,2372.2,2372.1,9.381]
[1747636615968,0.7598,2372.9,2372.1,9.381]
[1747636615969,4.2151041,2372.5,2372.1,9.381]
[1747636616173,4.21514734,2372.4,2372.1,9.381]
[1747636616335,4.21549616,2372.2,2372.1,9.381]
[1747636619680,4.21567387,2372.1,2372.0,0.815]
[1747636619882,4.21567387,2372.1,2372.0,10.195]
[1747636621169,4.21656265,2371.6,2371.5,9.38]
[1747636621968,4.21691827,2371.4,2371.3,0.43670568]
[1747636622888,5.35759783,2371.4,2371.3,0.43670568]
[1747636623064,4.21691827,2371.4,2371.3,0.43670568]
[1747636623264,5.66615243,2372.9,2371.3,19.19370568]
[1747636623494,4.21691827,2371.4,2371.3,18.757]
[1747636623682,4.21573507,2372.1,2371.3,9.38]
[1747636623886,4.21602934,2371.9,2371.3,9.38]
[1747636624187,4.21691827,2371.4,2371.3,9.38]
[1747636624593,4.21717323,2371.3,2371.1,9.366]
[1747636624892,4.21602934,2371.9,2370.9,0.9577]
[1747636625098,4.21762969,2371.0,2370.9,0.2057]
[1747636625258,0.7702,2371.7,2370.9,0.2057]
[1747636625454,4.21587836,2372.0,2371.0,0.87147338]
[1747636625665,4.21594071,2372.0,2371.2,8.0]
[1747636625869,4.2160383,2371.9,2371.4,4.21679217]
[1747636626067,4.21556432,2372.2,2371.3,10.2103]
[1747636626273,0.7702,2372.7,2371.6,0.8293]
[1747636626563,4.21619508,2371.9,2371.7,9.381]
[1747636626957,4.21619508,2371.9,2371.6,0.8293]
[1747636627202,4.21602934,2371.9,2371.8,0.2619932]
[1747636628395,4.21602934,2371.9,2371.2,0.43670568]
[1747636628396,4.2170961,2371.3,2371.2,0.43670568]
[1747636628883,0.92021056,2371.9,2371.2,0.43670568]
[1747636629198,4.21532616,2372.3,2371.9,0.7534]
[1747636629408,4.21526445,2372.4,2372.0,9.381]
[1747636629706,4.21463735,2372.7,2372.0,9.381]
[1747636629873,4.21463735,2372.7,2371.9,0.7534]
[1747636630075,4.2158516,2372.0,2371.9,0.7534]
[1747636630404,4.2158516,2372.0,2371.9,9.381]
[1747636630568,4.21463735,2372.7,2371.8,9.381]
[1747636630768,4.21612118,2371.9,2371.8,9.381]
[1747636631029,4.2162071,2371.8,2371.7,18.209]
[1747636631179,4.2162071,2371.8,2371.7,27.59]
[1747636631364,4.21656265,2371.6,2371.5,0.7607]
[1747636631568,4.21684101,2371.5,2371.4,9.381]
[1747636631809,4.21656265,2371.6,2371.4,9.381]
[1747636631810,4.21666694,2371.6,2371.4,9.381]
[1747636632402,4.21666694,2371.6,2371.5,0.26235528]
[1747636632698,10.1434,2372.3,2371.5,0.26235528]
[1747636632699,4.21549616,2372.2,2371.5,0.26235528]
[1747636632897,4.21656265,2371.6,2371.5,0.26235528]
[1747636633101,4.21632018,2371.8,2371.5,0.26235528]
[1747636633298,10.1434,2372.3,2371.5,0.26235528]
[1747636633604,4.21613772,2371.9,2371.5,0.26235528]
[1747636633902,10.1434,2372.3,2371.6,0.26235528]
[1747636633903,4.21622745,2371.8,2371.6,0.26235528]
[1747636634070,4.21638487,2371.7,2371.6,0.26235528]
[1747636635102,5.53621657,2371.7,2371.6,0.26235528]
[1747636635708,4.21740718,2371.2,2371.0,0.69906096]
[1747636635914,4.21294227,2371.2,2371.0,0.69906096]
[1747636636107,4.21719206,2371.3,2371.0,0.69906096]
[1747636636275,4.21722007,2371.3,2371.0,0.69906096]
[1747636636771,4.21729644,2371.2,2371.0,0.69906096]
[1747636636971,4.21729644,2371.2,2371.0,0.26235528]
[1747636637201,4.21711097,2371.3,2371.0,0.26235528]
[1747636637505,4.2174021,2371.2,2371.0,0.26235528]
[1747636637683,4.21745181,2371.1,2371.0,0.26235528]
[1747636638420,12.21745181,2371.1,2371.0,0.26235528]
[1747636638630,12.21745181,2371.1,2370.9,0.2057]
[1747636638631,12.21762969,2371.0,2370.9,0.2057]
[1747636638781,17.42023689,2371.0,2370.9,0.2057]
[1747636638978,12.98544134,2370.6,2369.5,9.358]
[1747636639194,35.57694854,2370.6,2369.5,9.358]
[1747636639391,39.55646192,2370.6,2369.2,0.8047]
[1747636639594,40.10646192,2370.6,2369.2,10.1627]
[1747636640106,4.22065588,2369.3,2369.2,0.8047]
[1747636640308,4.22119037,2369.0,2368.9,0.01965122]
[1747636641884,12.22119037,2369.0,2368.9,0.01965122]
[1747636642422,15.22009586,2369.0,2368.9,0.01965122]
[1747636642919,4.22233283,2368.4,2368.2,1.17510331]
[1747636643316,12.22243803,2368.3,2368.2,1.17510331]
[1747636643735,4.22213894,2368.5,2368.2,1.17510331]
[1747636644046,4.22243803,2368.3,2368.2,1.17510331]
[1747636645439,12.22243803,2368.3,2368.2,1.17510331]
[1747636645667,13.06690953,2368.3,2368.2,1.17510331]
[1747636645969,3.75980549,2369.0,2368.2,1.17510331]
[1747636646127,4.22184879,2368.7,2368.2,1.17510331]
[1747636646335,4.22199775,2368.6,2368.2,1.17510331]
[1747636646741,4.22199775,2368.6,2368.3,0.783]
[1747636647041,4.22243803,2368.3,2368.2,10.54110331]
[1747636647249,4.22236857,2368.4,2368.2,10.54110331]
[1747636647455,4.22243803,2368.3,2368.2,10.54110331]
[1747636647619,4.22233748,2368.4,2368.2,10.54110331]
[1747636647824,8.0,2368.9,2368.2,10.54110331]
[1747636648144,4.22218418,2368.5,2368.2,1.17510331]
[1747636648333,4.22243803,2368.3,2368.2,1.17510331]
[1747636648860,4.22219326,2368.5,2368.2,1.17510331]
[1747636649153,4.22229228,2368.4,2368.2,1.17510331]
[1747636649364,4.22243803,2368.3,2368.2,1.17510331]
[1747636649577,12.22243803,2368.3,2368.2,1.17510331]
[1747636649720,4.22243803,2368.3,2368.2,1.17510331]
[1747636649919,4.22209986,2368.5,2368.2,1.17510331]
[1747636649920,4.22208148,2368.5,2368.2,1.17510331]
[1747636650118,4.22148864,2368.9,2368.2,1.17510331]
[1747636650345,10.0903,2369.4,2368.3,10.1555]
[1747636650559,4.22191424,2368.6,2368.3,0.7885]
[1747636650775,4.22083403,2369.2,2368.3,10.1555]
[1747636651075,8.0,2369.0,2368.3,10.1555]
[1747636651281,4.22203393,2368.6,2368.3,10.1555]
[1747636651441,12.22122021,2369.0,2368.3,10.1555]
[1747636651644,4.22219426,2368.5,2368.3,10.1555]
[1747636651984,10.15302202,2369.0,2368.3,10.1555]
[1747636652137,4.22089465,2369.2,2368.6,4.22175781]
[1747636652344,4.220928,2369.2,2368.6,9.301]
[1747636652537,8.7277,2369.7,2368.6,9.301]
[1747636652538,4.22073741,2369.3,2368.7,4.22158569]
[1747636652740,0.8194,2370.0,2369.0,0.7983]
[1747636652939,7.97,2370.3,2369.4,0.7674]
[1747636652940,4.2190031,2370.3,2369.4,0.7674]
[1747636653155,0.801,2370.4,2369.5,13.58824114]
[1747636653355,2.12466085,2372.6,2369.5,13.58824114]
[1747636653356,0.801,2371.3,2369.7,0.7674]
[1747636653578,4.21793909,2370.9,2370.4,0.7674]
[1747636653787,4.2174497,2371.2,2370.5,9.368]
[1747636653994,0.751,2371.6,2370.6,0.0421786]
[1747636654193,4.21674045,2371.5,2370.6,0.0421786]
[1747636654351,4.21796686,2370.9,2370.5,9.368]
[1747636654555,4.2182841,2370.7,2370.5,9.368]
[1747636654855,0.751,2371.6,2370.4,0.7674]
[1747636655069,4.21851929,2370.5,2370.4,10.1334]
[1747636655468,4.21851929,2370.5,2370.4,0.7674]
[1747636656070,4.21851929,2370.5,2370.0,0.8173]
[1747636656071,4.21923125,2370.1,2370.0,0.8173]
[1747636656271,4.21911123,2370.2,2370.0,0.8173]
[1747636656471,4.21856709,2370.5,2370.0,0.8173]
[1747636656654,4.21756099,2371.1,2370.1,0.04218567]
[1747636656858,0.8307,2371.3,2370.1,4.21923125]
[1747636657161,0.8751,2371.5,2370.3,0.7602]
[1747636657363,4.99459041,2371.7,2370.7,4.21805464]
[1747636657557,4.21719284,2371.3,2370.7,4.21809671]
[1747636658091,4.21712268,2371.3,2370.7,4.21809473]
[1747636658471,4.21703001,2371.4,2370.8,4.21798284]
[1747636658672,4.21703001,2371.4,2370.9,18.683]
[1747636658898,4.21709879,2371.3,2370.9,18.683]
[1747636659260,15.02238943,2372.0,2370.6,0.7602]
[1747636659460,4.21816341,2370.7,2370.6,0.7602]
[1747636659694,4.21809924,2370.8,2370.6,0.7602]
[1747636659897,4.21816341,2370.7,2370.6,0.7602]
[1747636660719,4.21805034,2370.8,2370.6,0.7602]
[1747636660871,5.00167386,2371.3,2370.6,0.7602]
[1747636661077,4.21656265,2371.6,2370.6,0.7602]
[1747636661285,4.21674045,2371.5,2370.6,0.7602]
[1747636661487,4.21834134,2370.6,2370.5,9.364]
[1747636662309,4.21851929,2370.5,2370.4,9.38265386]
[1747636663215,4.21851929,2370.5,2370.4,0.01865386]
[1747636663394,5.06220763,2370.5,2370.4,0.01865386]
[1747636663917,5.83940763,2370.5,2370.4,0.01865386]
[1747636664088,13.83940763,2370.5,2370.4,0.01865386]
[1747636664615,5.06220763,2370.5,2370.4,0.01865386]
[1747636665109,4.21851929,2370.5,2370.4,0.01865386]
[1747636665310,17.304,2371.0,2370.4,0.01865386]
[1747636665483,4.21851929,2370.5,2370.4,0.01865386]
[1747636665711,4.21826694,2370.7,2370.4,0.01865386]
[1747636665913,4.21851929,2370.5,2370.4,0.01865386]
[1747636666505,5.06220789,2370.5,2370.4,0.01865386]
[1747636666722,5.84257109,2370.5,2370.4,0.01865386]
[1747636666940,13.84257109,2370.5,2370.4,0.01865386]
[1747636670666,5.84257109,2370.5,2370.4,0.01865386]
[1747636670840,4.99888249,2370.5,2370.4,0.01865386]
[1747636671040,12.99888249,2370.5,2370.4,0.01865386]
[1747636671423,4.21268249,2370.5,2370.4,0.01865386]
[1747636672452,4.21268249,2370.5,2370.4,9.32165386]
[1747636673042,4.21268249,2370.5,2370.4,0.01865386]
[1747636673680,13.05578768,2370.5,2370.4,0.01865386]
[1747636676994,22.70873555,2370.5,2370.4,0.01865386]
[1747636677177,22.70873555,2370.5,2368.8,0.43670568]
[1747636677178,4.22068283,2369.3,2368.8,0.7626153]
[1747636677383,4.22136856,2368.9,2368.8,1.08720962]
[1747636678667,4.22136856,2368.9,2368.8,0.32590962]
[1747636679873,4.21577892,2368.9,2368.8,0.32590962]
[1747636680667,4.22243803,2368.3,2368.2,1.96460331]
[1747636680883,4.22243803,2368.3,2368.2,1.17510331]
[1747636681925,5.03173803,2368.3,2368.2,1.17510331]
[1747636682277,14.27073803,2368.3,2368.2,1.17510331]
[1747636682505,26.55672214,2368.3,2368.2,1.17510331]
[1747636682817,39.17491484,2368.3,2368.2,1.17510331]
[1747636683023,38.36561484,2368.3,2368.2,1.17510331]
[1747636683185,39.13901484,2368.3,2368.2,1.17510331]
[1747636683699,13.56297297,2368.0,2367.9,0.32590962]
[1747636684017,22.86897297,2368.0,2367.9,0.32590962]
[1747636684320,4.22440013,2367.2,2367.0,0.5189438]
[1747636684490,31.73744225,2367.1,2367.0,0.5189438]
[1747636684683,5.06944225,2367.1,2367.0,0.5189438]
[1747636684881,22.98644225,2367.1,2367.0,0.5189438]
[1747636685111,12.77547114,2366.6,2366.5,1.3059573]
[1747636685440,18.48940793,2366.6,2366.5,1.3059573]
[1747636685584,39.46687911,2366.6,2366.5,1.3059573]
[1747636686175,40.01687911,2366.6,2366.5,1.3059573]
[1747636687109,20.76087911,2366.6,2366.5,1.3059573]
[1747636687308,21.62647114,2366.6,2366.5,1.3059573]
[1747636687510,4.22547114,2366.6,2366.5,1.3059573]
[1747636687716,10.48940793,2366.6,2366.5,1.3059573]
[1747636688018,18.48940793,2366.6,2366.5,1.3059573]
[1747636688194,22.25107911,2366.6,2366.5,1.3059573]
[1747636689606,40.97007911,2366.6,2366.5,1.3059573]
[1747636689802,4.22618544,2366.2,2366.1,1.3386708]
[1747636689991,4.22689999,2365.8,2365.7,1.3713843]
[1747636690192,23.02226378,2365.8,2365.7,1.3713843]
[1747636690417,31.78626378,2365.8,2365.7,1.3713843]
[1747636690792,38.924987,2365.8,2365.7,1.3713843]
[1747636691231,4.22689999,2365.8,2365.7,1.3713843]
[1747636691413,21.64789999,2365.8,2365.7,1.3713843]
[1747636691586,13.64789999,2365.8,2365.7,1.3713843]
[1747636692223,13.64289999,2365.8,2365.7,1.3713843]
[1747636692786,13.64689999,2365.8,2365.7,1.3713843]
[1747636693519,4.22689999,2365.8,2365.7,1.3713843]
[1747636694520,4.22189999,2365.8,2365.7,2.1522843]
[1747636694721,4.22681322,2365.9,2365.7,2.1522843]
[1747636694925,4.22689999,2365.8,2365.7,2.1522843]
[1747636695221,4.21921999,2365.8,2365.7,2.1522843]
[1747636695719,6.81002257,2366.5,2365.7,2.1522843]
[1747636695924,4.22679881,2365.9,2365.7,2.1522843]
[1747636696330,4.22689999,2365.8,2365.7,2.1522843]
[1747636696494,4.22689999,2365.8,2365.7,1.3713843]
[1747636697425,4.22689999,2365.8,2365.7,2.2039843]
[1747636697651,4.22689999,2365.8,2365.7,1.3713843]
[1747636697805,4.19009999,2365.8,2365.7,1.3713843]
[1747636701431,5.03178384,2365.8,2365.7,1.3713843]
[1747636701642,14.47478384,2365.8,2365.7,1.3713843]
[1747636701837,31.89378384,2365.8,2365.7,1.3713843]
[1747636702150,32.44378384,2365.8,2365.7,1.3713843]
[1747636702453,33.24378384,2365.8,2365.7,1.3713843]
[1747636703819,32.67278384,2365.8,2365.7,1.3713843]
[1747636704056,32.67678384,2365.8,2365.7,1.3713843]
[1747636704623,4.99009999,2365.8,2365.7,1.3713843]
[1747636704941,4.99009999,2365.8,2365.7,2.1415843]
[1747636705150,4.99009999,2365.8,2365.7,1.3713843]
[1747636705323,12.99009999,2365.8,2365.7,1.3713843]
[1747636705660,14.48509999,2365.8,2365.7,1.3713843]
[1747636705860,6.86128384,2365.8,2365.7,1.3713843]
[1747636706063,14.47909999,2365.8,2365.7,1.3713843]
[1747636706237,4.98466045,2365.8,2365.7,1.3713843]
[1747636706435,22.46766045,2365.8,2365.7,1.3713843]
[1747636706647,23.01766045,2365.8,2365.7,1.3713843]
[1747636707163,4.98466045,2365.8,2365.7,1.3713843]
[1747636708059,0.8,2365.8,2365.7,1.58602273]
[1747636708261,3.21167118,2366.6,2365.7,1.58602273]
[1747636708560,4.22672133,2365.9,2365.8,0.758]
[1747636709532,4.22689999,2365.8,2365.7,1.3713843]
[1747636711236,13.71389999,2365.8,2365.7,1.3713843]
[1747636711431,4.22689999,2365.8,2365.7,1.3713843]
[1747636711658,5.02689999,2365.8,2365.7,1.3713843]
[1747636712946,5.94926282,2365.8,2365.7,1.3713843]
[1747636713687,5.02389803,2365.8,2365.7,1.3713843]
[1747636713980,5.02389803,2365.8,2365.7,2.1703843]
[1747636713981,5.02689999,2365.8,2365.7,2.1703843]
[1747636714184,4.22689999,2365.8,2365.7,11.5823843]
[1747636714348,4.22689999,2365.8,2365.7,2.1703843]
[1747636715178,4.22689999,2365.8,2365.7,1.3713843]
[1747636715379,6.0191649,2365.8,2365.7,1.3713843]
[1747636715614,4.22761477,2365.4,2364.9,2.10347796]
[1747636715748,4.2283298,2365.0,2364.9,2.10347796]
[1747636718165,14.1913298,2365.0,2364.9,2.10347796]
[1747636718348,16.98538,2365.0,2364.9,2.10347796]
[1747636719451,31.25527608,2365.0,2364.9,2.10347796]
[1747636720385,31.25527608,2365.0,2364.9,1.80767637]
[1747636720552,21.84227608,2365.0,2364.9,1.80767637]
[1747636720755,21.7533298,2365.0,2364.9,1.80767637]
[1747636721265,23.1033298,2365.0,2364.9,1.80767637]
[1747636721860,41.3653298,2365.0,2364.9,1.80767637]
[1747636722562,31.2903298,2365.0,2364.9,1.80767637]
[1747636722768,50.2293298,2365.0,2364.9,1.80767637]
[1747636722998,54.3275225,2365.0,2364.9,1.80767637]
[1747636723694,35.9385225,2365.0,2364.9,1.80767637]
[1747636723899,54.8665225,2365.0,2364.9,1.80767637]
[1747636724261,57.1860025,2365.0,2364.9,1.80767637]
[1747636724460,55.21635355,2365.0,2364.9,1.80767637]
[1747636724693,36.28835355,2365.0,2364.9,1.80767637]
[1747636724865,55.30635355,2365.0,2364.9,1.80767637]
[1747636725297,61.73337255,2365.0,2364.9,1.80767637]
[1747636725504,60.56497755,2365.0,2364.9,1.80767637]
[1747636725662,57.91190555,2365.0,2364.9,1.80767637]
[1747636725857,17.47635355,2365.0,2364.9,1.80767637]
[1747636726491,18.02635355,2365.0,2364.9,1.80767637]
[1747636726690,17.47635355,2365.0,2364.9,1.80767637]
[1747636726901,36.51535355,2365.0,2364.9,1.80767637]
[1747636727766,5.37816085,2365.0,2364.9,1.80767637]
[1747636728395,0.8,2365.0,2364.9,2.59097637]
[1747636728597,4.22771056,2365.4,2365.0,0.7833]
[1747636728796,4.22794233,2365.3,2365.0,0.7833]
[1747636729018,4.22815102,2365.1,2365.0,0.7833]
[1747636731288,4.22809458,2365.2,2365.0,0.7833]
[1747636731511,4.22815102,2365.1,2365.0,0.7833]
[1747636732102,4.88317009,2365.8,2365.0,0.7833]
[1747636732290,4.88317009,2365.8,2365.0,0.8145]
[1747636732291,0.6562419,2365.8,2365.0,0.8145]
[1747636732493,0.6562419,2365.8,2365.3,8.0]
[1747636732692,0.6562419,2365.8,2365.4,28.575]
[1747636732935,5.53037794,2366.4,2365.8,4.22680355]
[1747636733233,1.30143254,2366.4,2366.1,0.8038]
[1747636733525,1.30143254,2366.4,2366.2,9.64]
[1747636733728,1.30143254,2366.4,2366.3,0.8038]
[1747636734032,0.46813254,2366.4,2366.3,23.96302991]
[1747636734204,1.64430834,2366.9,2366.6,0.8038]
[1747636734406,1.64430834,2366.9,2366.8,0.8168]
[1747636735929,5.8692439,2366.9,2366.8,0.8168]
[1747636736302,4.22582826,2366.4,2366.3,18.262]
[1747636736506,4.22582826,2366.4,2366.3,9.509]
[1747636736707,4.22618544,2366.2,2366.1,0.8024]
[1747636737604,4.22672133,2365.9,2365.8,0.8225]
[1747636737808,4.22761477,2365.4,2365.3,9.506]
[1747636738009,4.22761477,2365.4,2365.3,0.35292884]
[1747636739455,4.22797226,2365.2,2365.1,0.8071]
[1747636739797,4.22781348,2365.3,2365.1,0.8071]
[1747636739798,4.22786404,2365.3,2365.1,0.8071]
[1747636740096,4.22743696,2365.5,2365.1,0.8071]
[1747636740299,4.22646946,2366.1,2365.2,9.584]
[1747636740559,4.2263,2366.2,2365.7,0.8014]
[1747636740898,8.7476,2366.8,2365.2,9.584]
[1747636740899,9.587,2367.1,2365.8,23.31980022]
[1747636741061,10.48532805,2367.5,2365.8,23.31980022]
[1747636741062,7.97,2367.8,2366.1,0.8014]
[1747636741205,4.2244068,2367.2,2366.6,0.8014]
[1747636741405,4.2245851,2367.1,2366.7,19.9014]
[1747636741606,4.22283096,2368.1,2367.0,4.22466415]
[1747636741837,4.22226594,2368.4,2367.4,4.22392877]
[1747636741838,4.22310483,2368.0,2367.4,4.22392877]
[1747636742013,4.22277699,2368.2,2367.6,0.7561]
[1747636742215,4.22311763,2368.0,2367.6,0.7561]
[1747636744683,3.30909538,2368.8,2368.7,9.504]
[1747636745009,4.22121967,2369.0,2368.7,9.504]
[1747636745213,4.22035113,2369.5,2368.6,0.7791]
[1747636745408,7.97,2369.7,2368.8,9.504]
[1747636745409,4.22118332,2369.1,2368.8,9.504]
[1747636745663,4.22118332,2369.1,2368.9,0.7679]
[1747636745813,4.21994345,2369.7,2368.9,0.7679]
[1747636746213,4.22029964,2369.5,2368.9,0.7679]
[1747636746409,4.22119037,2369.0,2368.9,0.7679]
[1747636746633,4.22119037,2369.0,2368.9,10.2679]
[1747636747749,4.22103613,2369.1,2368.9,10.2679]
[1747636747954,4.22119037,2369.0,2368.9,10.2679]
[1747636748252,4.22002633,2369.7,2368.9,10.2679]
[1747636748429,0.7808,2370.2,2369.0,0.0422032]
[1747636748631,4.43792139,2370.6,2369.3,0.7703]
[1747636748632,4.43784649,2370.6,2369.3,0.7703]
[1747636748832,13.84649829,2371.1,2369.7,0.7703]
[1747636749031,9.629,2371.1,2369.7,0.7703]
[1747636749236,4.21953659,2370.0,2369.7,0.7703]
[1747636749444,0.9629,2371.0,2369.8,19.121]
[1747636749661,4.21925415,2370.1,2369.9,0.8324]
[1747636750160,4.21905324,2370.2,2370.0,9.498]
[1747636750345,4.21923125,2370.1,2370.0,9.498]
[1747636750749,4.2140668,2370.0,2369.9,0.8324]
[1747636751064,4.2140668,2370.0,2369.9,10.3304]
[1747636751758,4.21940928,2370.0,2369.9,0.8324]
[1747636753162,13.18062844,2371.0,2369.9,0.8324]
[1747636753163,6.26132827,2370.9,2369.9,0.8324]
[1747636753335,6.26132827,2370.9,2370.0,1.03274]
[1747636753336,4.21872699,2370.4,2370.0,1.03274]
[1747636753737,4.21860307,2370.5,2370.0,1.03274]
[1747636753943,4.21872745,2370.4,2370.0,1.03274]
[1747636754269,0.7682,2371.4,2370.0,1.03274]
[1747636754270,0.7682,2371.4,2370.0,10.60874]
[1747636754439,9.577,2371.6,2370.5,0.7506]
[1747636754628,14.7430996,2371.6,2370.6,9.492]
[1747636754829,10.47711864,2372.1,2370.6,9.492]
[1747636754830,4.21674045,2371.5,2370.8,4.21797481]
[1747636755137,4.21637366,2371.8,2370.9,0.7828]
[1747636755330,4.21634038,2371.8,2371.0,13.79451353]
[1747636755530,15.02202827,2372.5,2371.0,13.79451353]
[1747636755531,4.21514078,2372.4,2371.3,0.7828]
[1747636755772,4.21514078,2372.4,2371.3,23.23088373]
[1747636755931,4.21604994,2371.9,2371.4,0.43848307]
[1747636756127,4.21604994,2371.9,2371.5,9.579]
[1747636756343,4.21604994,2371.9,2371.6,9.581]
[1747636756563,4.2162071,2371.8,2371.7,9.581]
[1747636757472,4.21075355,2371.8,2371.7,9.581]
[1747636757681,4.21674045,2371.5,2371.3,19.0138]
[1747636757842,4.21691827,2371.4,2371.3,0.7828]
[1747636758178,4.21691827,2371.4,2371.3,0.35203584]
[1747636760480,4.99589856,2372.2,2371.3,0.35203584]
[1747636760481,9.99751408,2372.3,2371.3,0.35203584]
[1747636760788,0.42151408,2372.3,2371.4,0.7666]
[1747636760940,0.46366903,2372.2,2371.4,0.7666]
[1747636761136,4.21621851,2371.8,2371.4,10.3406]
[1747636761364,0.42151408,2372.3,2371.4,10.3406]
[1747636761365,4.21610127,2371.9,2371.4,10.3406]
[1747636761549,4.21593542,2372.0,2371.4,14.55746988]
[1747636761756,4.21559075,2372.2,2371.6,0.8213]
[1747636761938,13.78643861,2372.8,2371.7,9.576]
[1747636762143,4.21544449,2372.3,2371.8,0.8213]
[1747636762338,4.21544449,2372.3,2372.0,0.8091]
[1747636762541,4.21407501,2373.0,2372.0,0.8091]
[1747636762747,0.21930425,2373.1,2372.0,5.02494431]
[1747636763045,4.2149385,2372.6,2372.0,5.02486033]
[1747636763494,4.21483799,2372.6,2372.0,5.02486033]
[1747636763675,4.2144943,2372.8,2372.1,4.2156671]
[1747636763879,4.21421358,2373.0,2372.3,0.7888]
[1747636764098,4.21442785,2372.9,2372.8,0.00299795]
[1747636767047,4.2147724,2372.7,2372.5,0.00299795]
[1747636767261,4.21453917,2372.8,2372.6,9.571]
[1747636767786,4.21460783,2372.7,2372.5,0.00299795]
[1747636767946,4.21451097,2372.8,2372.6,9.571]
[1747636768139,4.21433231,2372.9,2372.6,9.571]
[1747636768439,8.0,2373.6,2372.6,9.571]
[1747636768657,4.21381911,2373.2,2372.7,0.7852]
[1747636768866,4.21391913,2373.1,2372.7,0.7852]
[1747636769178,4.2144302,2372.8,2372.7,0.7852]
[1747636770044,4.21143225,2372.8,2372.7,0.7852]
[1747636770270,4.21496311,2372.5,2372.3,0.7754]
[1747636770467,4.21478759,2372.6,2372.3,0.7754]
[1747636770673,4.21497733,2372.5,2372.3,0.7754]
[1747636771184,0.8216,2373.1,2372.3,0.7754]
[1747636771185,4.21483191,2372.6,2372.3,0.7754]
[1747636771368,4.21338112,2373.4,2372.3,0.7754]
[1747636771580,4.21419173,2373.0,2372.3,4.99069042]
[1747636771742,11.29263035,2373.7,2372.3,0.7754]
[1747636771942,4.21318727,2373.5,2372.3,4.99062965]
[1747636772150,4.21318727,2373.5,2372.3,0.7754]
[1747636772469,4.21370835,2373.3,2372.8,0.8007]
[1747636772673,4.21382506,2373.2,2372.9,9.568]
[1747636773259,4.21327911,2373.5,2373.0,0.763]
[1747636773472,4.21297889,2373.7,2373.0,0.763]
[1747636773673,4.2130404,2373.6,2373.0,4.97694699]
[1747636773881,4.2130404,2373.6,2373.1,4.21389743]
[1747636774087,4.2130404,2373.6,2373.2,10.05668974]
[1747636774582,4.21301793,2373.6,2373.2,10.05668974]
[1747636774890,4.21290061,2373.7,2373.2,10.05668974]
[1747636775186,4.21269846,2373.8,2373.2,10.05668974]
[1747636775187,4.21276295,2373.8,2373.2,10.05668974]
[1747636775350,4.21311149,2373.6,2373.2,10.05668974]
[1747636775550,4.21311149,2373.6,2373.2,0.49768974]
[1747636775752,4.21338102,2373.4,2373.2,0.351754]
[1747636775986,4.21354232,2373.3,2373.2,0.351754]
[1747636777275,4.20598328,2373.1,2373.0,0.763]
[1747636777479,4.21354232,2373.3,2373.0,0.763]
[1747636777480,4.21363627,2373.3,2373.0,10.329]
[1747636777680,4.21340926,2373.4,2373.0,10.329]
[1747636777880,4.21295596,2373.7,2373.0,14.54301572]
[1747636778076,4.21271856,2373.8,2373.1,4.2138085]
[1747636778288,4.21285678,2373.7,2373.0,14.54302433]
[1747636778610,0.8208,2374.2,2373.0,0.763]
[1747636778812,4.21389743,2373.1,2373.0,10.328]
[1747636779315,4.21389743,2373.1,2373.0,9.565]